fUSD/lending_fUSD_20240521
["ID","MTS","AMOUNT","RATE_DAILY","PERIOD"]
[327642406,1716270644502,-158.0,0.00035477,2]
[327642408,1716270644511,-612.82746148,0.00035477,14]
[327642410,1716270644521,-4349.5364756,0.00035477,4]
[327642412,1716270644530,-680.34498152,0.00035477,15]
[327642414,1716270644539,-7782.48112939,0.00035477,4]
[327642416,1716270644549,-205.01098892,0.00035477,4]
[327642418,1716270644558,-5273.17210479,0.00035477,4]
[327642420,1716270644567,-155.15556806,0.00035477,4]
[327642422,1716270644576,-3955.81802377,0.00035477,7]
[327642424,1716270644586,-33470.17163305,0.00035477,4]
[327642426,1716270644595,-167.59589683,0.00035477,4]
[327642428,1716270644605,-155.0,0.00035477,4]
[327642430,1716270644614,-2061.51629876,0.00035477,4]
[327642432,1716270644623,-1248.10825523,0.00035477,4]
[327642434,1716270644632,-218.10895698,0.00035477,4]
[327642436,1716270644642,-155.0,0.00035477,4]
[327642438,1716270644651,-2326.16547431,0.00035477,4]
[327642440,1716270644660,-537.2775495,0.00035477,4]
[327642442,1716270644671,-247.76966541,0.00035477,4]
[327642444,1716270644681,-1512.76334421,0.00035477,4]
[327642446,1716270644690,-419.18534484,0.00035477,4]
[327642448,1716270644700,-377.00428015,0.00035477,4]
[327642450,1716270644710,-1000.0,0.00035477,2]
[327642452,1716270644719,-195.60542276,0.00035477,4]
[327642454,1716270644728,-2867.73058125,0.00035477,4]
[327642456,1716270644737,-189.0992663,0.00035477,4]
[327642458,1716270644747,-792.50738408,0.00035477,2]
[327642460,1716270644756,-195.72161682,0.00035477,4]
[327642462,1716270644766,-2889.39399766,0.00035477,4]
[327642464,1716270644775,-165.26556897,0.00035477,4]
[327642466,1716270644784,-349.10293235,0.00035477,4]
[327642468,1716270644794,-229.52748653,0.00035477,4]
[327642470,1716270644804,-3015.80213045,0.00035477,4]
[327642472,1716270644814,-155.25649084,0.00035477,4]
[327642474,1716270644824,-408.3633624,0.00035477,4]
[327642476,1716270644833,-208.5822665,0.00035477,4]
[327642478,1716270644843,-155.51525622,0.00035477,4]
[327642480,1716270644852,-1139.55302842,0.00035477,4]
[327642483,1716270644862,-1446.67448387,0.00035477,4]
[327642485,1716270644873,-155.0,0.00035477,4]
[327642487,1716270644882,-19710.75093444,0.00035477,4]
[327642489,1716270644892,-225.94179816,0.00035477,4]
[327642491,1716270644901,-250.92971716,0.00035477,4]
[327642493,1716270644911,-209.82674129,0.00035477,4]
[327642495,1716270644921,-222.84697524,0.00035477,4]
[327642497,1716270644930,-158.80702101,0.00035477,4]
[327642499,1716270644940,-2456.19695707,0.00035477,4]
[327642501,1716270644951,-354.49318549,0.00035477,30]
[327642503,1716270644960,-378.83157048,0.00035477,4]
[327642505,1716270644970,-8073.17456004,0.00035477,2]
[327642507,1716270644979,-3590.14,0.00035477,6]
[327642509,1716270644988,-650.57307744,0.00035477,4]
[327642511,1716270644997,-3089.44753044,0.00035478,4]
[327642513,1716270645007,-155.20040117,0.00035478,4]
[327642515,1716270645017,-2221.82871026,0.00035478,14]
[327642517,1716270645026,-155.36898588,0.00035478,4]
[327642519,1716270645036,-155.0,0.00035478,4]
[327642521,1716270645046,-157.70718433,0.00035478,4]
[327642523,1716270645055,-151.0,0.00035478,7]
[327642525,1716270645065,-3590.14,0.00035478,6]
[327642527,1716270645074,-3590.14,0.00035478,6]
[327642529,1716270645084,-3590.14,0.00035478,6]
[327642531,1716270645095,-3590.14,0.00035478,6]
[327642534,1716270645104,-3590.14,0.00035478,6]
[327642536,1716270645114,-3590.14,0.00035478,6]
[327642538,1716270645123,-3590.14,0.00035478,6]
[327642539,1716270645132,-3590.14,0.00035478,6]
[327642542,1716270645142,-3590.14,0.00035478,6]
[327642544,1716270645151,-3590.14,0.00035478,6]
[327642546,1716270645161,-3590.14,0.00035478,6]
[327642548,1716270645174,-3590.14,0.00035478,6]
[327642550,1716270645183,-3590.14,0.00035478,6]
[327642552,1716270645193,-3590.14,0.00035478,6]
[327642553,1716270645204,-3590.14,0.00035478,6]
[327642556,1716270645213,-3590.14,0.00035478,6]
[327642558,1716270645223,-3590.14,0.00035478,6]
[327642560,1716270645232,-3590.14,0.00035478,6]
[327642561,1716270645243,-3590.14,0.00035478,6]
[327642563,1716270645253,-3590.14,0.00035478,6]
[327642566,1716270645263,-3590.35063562,0.00035478,6]
[327642568,1716270645272,-159.223412,0.00035478,7]
[327642570,1716270645282,-161.513505,0.00035478,7]
[327642572,1716270645292,-500.0,0.00035478,2]
[327642574,1716270645302,-500.0,0.00035478,6]
[327642575,1716270645311,-156.06771295,0.00035478,30]
[327642578,1716270645320,-76966.03386962,0.00035479,15]
[327642580,1716270645330,-1552.32261964,0.00035479,4]
[327642582,1716270645339,-502.94985484,0.00035479,6]
[327642583,1716270645348,-509.00806295,0.00035479,6]
[327642586,1716270645358,-500.0,0.00035479,6]
[327642588,1716270645367,-18549.84099677,0.00035479,2]
[327642590,1716270645377,-187.58191796,0.00035479,5]
[327642592,1716270645387,-366.00364863,0.00035479,6]
[327642596,1716270645396,-512.28,0.00035479,6]
[327642598,1716270645405,-512.28,0.00035479,6]
[327642602,1716270645415,-512.28,0.00035479,6]
[327642604,1716270645424,-512.28,0.00035479,6]
[327642605,1716270645433,-512.28,0.00035479,6]
[327642608,1716270645443,-2000.0,0.00035479,2]
[327642610,1716270645455,-510.30119168,0.00035479,6]
[327642612,1716270645464,-370.49025155,0.00035479,6]
[327642614,1716270645476,-200.0,0.00035479,2]
[327642616,1716270645486,-863.83,0.00035479,6]
[327642618,1716270645495,-500.0,0.00035479,6]
[327642620,1716270645507,-500.0,0.00035479,6]
[327642622,1716270645517,-500.0,0.00035479,6]
[327642624,1716270645526,-500.0,0.00035479,6]
[327642625,1716270645535,-500.0,0.00035479,6]
[327642627,1716270645545,-508.49669724,0.00035479,6]
[327642629,1716270645554,-500.0,0.00035479,6]
[327642633,1716270645564,-512.90975165,0.00035479,6]
[327642636,1716270645574,-500.0,0.00035479,6]
[327642638,1716270645583,-500.0,0.00035479,6]
[327642641,1716270645593,-500.0,0.00035479,6]
[327642642,1716270645604,-500.0,0.00035479,6]
[327642644,1716270645614,-530.74631838,0.00035479,6]
[327642646,1716270645624,-500.0,0.00035479,6]
[327642649,1716270645633,-500.0,0.00035479,6]
[327642650,1716270645642,-500.0,0.00035479,6]
[327642651,1716270645652,-500.0,0.00035479,6]
[327642652,1716270645662,-500.0,0.00035479,6]
[327642653,1716270645671,-500.0,0.00035479,6]
[327642654,1716270645681,-500.0,0.00035479,6]
[327642655,1716270645690,-296.95184781,0.00035479,6]
[327642656,1716270645701,-500.0,0.00035479,6]
[327642657,1716270645710,-500.0,0.00035479,6]
[327642658,1716270645719,-707.58,0.00035479,6]
[327642659,1716270645729,-500.0,0.00035479,6]
[327642661,1716270645738,-500.0,0.00035479,6]
[327642663,1716270645748,-500.0,0.00035479,6]
[327642665,1716270645757,-500.0,0.00035479,6]
[327642667,1716270645766,-500.0,0.00035479,6]
[327642669,1716270645777,-507.83967307,0.00035479,6]
[327642671,1716270645787,-500.0,0.00035479,6]
[327642673,1716270645797,-217.60840401,0.00035479,6]
[327642675,1716270645806,-153.531594,0.00035479,7]
[327642677,1716270645817,-599.5,0.00035479,6]
[327642679,1716270645827,-500.0,0.00035479,6]
[327642681,1716270645836,-500.0,0.00035479,6]
[327642683,1716270645846,-472.77012663,0.00035479,6]
[327642685,1716270645855,-921.73,0.00035479,6]
[327642687,1716270645865,-921.73,0.00035479,6]
[327642689,1716270645875,-921.73,0.00035479,6]
[327642691,1716270645884,-921.73,0.00035479,6]
[327642726,1716270646216,-921.73,0.00035479,6]
[327642728,1716270646226,-500.0,0.00035479,6]
[327642730,1716270646236,-500.0,0.00035479,6]
[327642732,1716270646246,-573.32,0.00035479,6]
[327642734,1716270646257,-500.0,0.00035479,6]
[327642736,1716270646267,-500.0,0.00035479,6]
[327642738,1716270646277,-500.0,0.00035479,6]
[327642740,1716270646286,-521.94907978,0.00035479,6]
[327642742,1716270646296,-500.0,0.00035479,6]
[327642744,1716270646307,-527.36257868,0.00035479,6]
[327642746,1716270646316,-946.99,0.00035479,6]
[327642748,1716270646326,-946.99,0.00035479,6]
[327642750,1716270646335,-946.99,0.00035479,6]
[327642752,1716270646344,-608.62,0.00035479,6]
[327642754,1716270646354,-946.99,0.00035479,6]
[327642756,1716270646364,-946.99,0.00035479,6]
[327642758,1716270646373,-500.0,0.00035479,6]
[327642760,1716270646383,-500.0,0.00035479,6]
[327642762,1716270646392,-500.0,0.00035479,6]
[327642764,1716270646401,-500.0,0.00035479,6]
[327642766,1716270646411,-500.0,0.00035479,6]
[327642768,1716270646420,-500.0,0.00035479,6]
[327642770,1716270646431,-710.27,0.00035479,6]
[327642772,1716270646440,-710.27,0.00035479,6]
[327642774,1716270646451,-710.27,0.00035479,6]
[327642776,1716270646460,-710.27,0.00035479,6]
[327642778,1716270646469,-710.27,0.00035479,6]
[327642780,1716270646478,-151.0,0.00035479,7]
[327642782,1716270646487,-500.0,0.00035479,6]
[327642784,1716270646497,-531.2,0.00035479,6]
[327642786,1716270646506,-531.2,0.00035479,6]
[327642788,1716270646516,-531.2,0.00035479,6]
[327642790,1716270646525,-531.2,0.00035479,6]
[327642793,1716270646535,-531.2,0.00035479,6]
[327642795,1716270646545,-500.0,0.00035479,6]
[327642797,1716270646554,-708.4,0.00035479,6]
[327642799,1716270646563,-708.4,0.00035479,6]
[327642801,1716270646572,-708.4,0.00035479,6]
[327642803,1716270646582,-708.4,0.00035479,6]
[327642805,1716270646591,-708.4,0.00035479,6]
[327642807,1716270646600,-500.0,0.00035479,6]
[327642809,1716270646609,-500.0,0.00035479,6]
[327642811,1716270646618,-602.61,0.00035479,6]
[327642813,1716270646627,-602.61,0.00035479,6]
[327642815,1716270646636,-602.61,0.00035479,6]
[327642816,1716270646646,-602.61,0.00035479,6]
[327642818,1716270646655,-602.61,0.00035479,6]
[327642821,1716270646665,-910.23,0.00035479,6]
[327642823,1716270646674,-500.0,0.00035479,6]
[327642825,1716270646683,-500.0,0.00035479,6]
[327642827,1716270646692,-468.25105757,0.00035479,6]
[327642829,1716270646702,-922.05,0.00035479,6]
[327642831,1716270646711,-628.19,0.00035479,6]
[327642833,1716270646721,-628.19,0.00035479,6]
[327642835,1716270646730,-628.19,0.00035479,6]
[327642837,1716270646739,-628.19,0.00035479,6]
[327642839,1716270646748,-628.19,0.00035479,6]
[327642841,1716270646758,-500.0,0.00035479,6]
[327642843,1716270646767,-500.0,0.00035479,6]
[327642844,1716270646776,-500.0,0.00035479,6]
[327642846,1716270646786,-500.0,0.00035479,6]
[327642848,1716270646795,-500.0,0.00035479,6]
[327642851,1716270646804,-500.0,0.00035479,6]
[327642853,1716270646814,-952.22,0.00035479,6]
[327642855,1716270646824,-500.0,0.00035479,6]
[327642857,1716270646833,-500.0,0.00035479,6]
[327642859,1716270646843,-500.0,0.00035479,6]
[327642861,1716270646852,-500.0,0.00035479,6]
[327642863,1716270646861,-500.0,0.00035479,6]
[327642865,1716270646871,-500.0,0.00035479,6]
[327642867,1716270646880,-273.84,0.00035479,6]
[327642869,1716270646889,-151.654796,0.00035479,7]
[327642871,1716270646899,-522.33,0.00035479,6]
[327642873,1716270646908,-500.0,0.00035479,6]
[327642875,1716270646919,-522.33,0.00035479,6]
[327642877,1716270646928,-522.33,0.00035479,6]
[327642879,1716270646938,-522.33,0.00035479,6]
[327642881,1716270646949,-522.33,0.00035479,6]
[327642883,1716270646958,-500.0,0.00035479,30]
[327642885,1716270646968,-500.0,0.00035479,6]
[327642887,1716270646977,-500.0,0.00035479,6]
[327642889,1716270646986,-1329.75,0.00035479,6]
[327642891,1716270646996,-152.836982,0.00035479,7]
[327642893,1716270647005,-500.0,0.00035479,6]
[327642895,1716270647014,-500.0,0.00035479,6]
[327642897,1716270647023,-745.78,0.00035479,6]
[327642899,1716270647033,-500.0,0.00035479,6]
[327642900,1716270647042,-745.78,0.00035479,6]
[327642902,1716270647051,-745.78,0.00035479,6]
[327642904,1716270647060,-500.0,0.00035479,6]
[327642906,1716270647069,-745.78,0.00035479,6]
[327642908,1716270647079,-745.78,0.00035479,6]
[327642911,1716270647089,-756.1,0.00035479,6]
[327642913,1716270647099,-500.0,0.00035479,6]
[327642915,1716270647108,-500.0,0.00035479,6]
[327642917,1716270647117,-756.1,0.00035479,6]
[327642919,1716270647126,-756.1,0.00035479,6]
[327642921,1716270647136,-1204.61,0.00035479,6]
[327642923,1716270647145,-756.1,0.00035479,6]
[327642925,1716270647155,-756.1,0.00035479,6]
[327642927,1716270647170,-500.0,0.00035479,6]
[327642929,1716270647179,-500.0,0.00035479,6]
[327642931,1716270647189,-500.0,0.00035479,6]
[327642933,1716270647199,-500.0,0.00035479,6]
[327642935,1716270647209,-500.0,0.00035479,6]
[327642937,1716270647218,-500.0,0.00035479,6]
[327642939,1716270647227,-500.0,0.00035479,6]
[327642941,1716270647239,-500.0,0.00035479,6]
[327642943,1716270647248,-500.0,0.00035479,6]
[327642945,1716270647258,-500.0,0.00035479,6]
[327642947,1716270647267,-500.0,0.00035479,6]
[327642949,1716270647277,-504.55,0.00035479,6]
[327642951,1716270647287,-892.36,0.00035479,6]
[327642953,1716270647296,-892.36,0.00035479,6]
[327642955,1716270647306,-892.36,0.00035479,6]
[327642956,1716270647315,-892.36,0.00035479,6]
[327642957,1716270647325,-892.36,0.00035479,6]
[327642958,1716270647335,-872.22,0.00035479,6]
[327642959,1716270647344,-500.0,0.00035479,6]
[327642960,1716270647354,-500.0,0.00035479,6]
[327642961,1716270647363,-500.0,0.00035479,6]
[327642962,1716270647372,-810.46,0.00035479,6]
[327642963,1716270647382,-810.46,0.00035479,6]
[327642964,1716270647391,-753.57,0.00035479,6]
[327642965,1716270647400,-810.46,0.00035479,6]
[327642967,1716270647410,-753.57,0.00035479,6]
[327642969,1716270647419,-810.46,0.00035479,6]
[327642971,1716270647428,-753.57,0.00035479,6]
[327642973,1716270647438,-697.53,0.00035479,6]
[327642975,1716270647447,-810.46,0.00035479,6]
[327642977,1716270647457,-753.57,0.00035479,6]
[327642980,1716270647467,-697.53,0.00035479,6]
[327642982,1716270647476,-753.57,0.00035479,6]
[327642984,1716270647485,-697.53,0.00035479,6]
[327642986,1716270647494,-697.53,0.00035479,6]
[327642988,1716270647503,-500.0,0.00035479,6]
[327642990,1716270647512,-697.53,0.00035479,6]
[327642992,1716270647522,-551.35,0.00035479,6]
[327642994,1716270647531,-186.70946595,0.00035479,6]
[327642996,1716270647540,-500.0,0.00035479,6]
[327642997,1716270647550,-650.73,0.00035479,6]
[327642999,1716270647559,-788.99,0.00035479,6]
[327643002,1716270647568,-788.99,0.00035479,6]
[327643004,1716270647578,-788.99,0.00035479,6]
[327643006,1716270647587,-788.99,0.00035479,6]
[327643008,1716270647596,-788.99,0.00035479,6]
[327643010,1716270647605,-960.85,0.00035479,6]
[327643012,1716270647614,-500.0,0.00035479,6]
[327643013,1716270647623,-500.0,0.00035479,6]
[327643016,1716270647633,-500.0,0.00035479,6]
[327643018,1716270647642,-500.0,0.00035479,6]
[327643019,1716270647651,-500.0,0.00035479,6]
[327643022,1716270647661,-922.2,0.00035479,6]
[327643024,1716270647670,-522.43,0.00035479,6]
[327643025,1716270647679,-500.0,0.00035479,6]
[327643028,1716270647688,-500.0,0.00035479,6]
[327643030,1716270647699,-500.0,0.00035479,6]
[327643032,1716270647708,-500.0,0.00035479,6]
[327643034,1716270647717,-500.0,0.00035479,6]
[327643036,1716270647726,-846.03,0.00035479,6]
[327643038,1716270647735,-840.41,0.00035479,6]
[327643040,1716270647744,-840.41,0.00035479,6]
[327643042,1716270647753,-840.41,0.00035479,6]
[327643044,1716270647762,-840.41,0.00035479,6]
[327643045,1716270647771,-840.41,0.00035479,6]
[327643048,1716270647781,-500.0,0.00035479,6]
[327643050,1716270647790,-500.0,0.00035479,6]
[327643052,1716270647799,-500.0,0.00035479,6]
[327643054,1716270647808,-500.0,0.00035479,6]
[327643056,1716270647817,-500.0,0.00035479,6]
[327643058,1716270647827,-500.0,0.00035479,6]
[327643060,1716270647836,-500.0,0.00035479,6]
[327643062,1716270647845,-500.0,0.00035479,6]
[327643064,1716270647854,-500.0,0.00035479,6]
[327643066,1716270647863,-500.0,0.00035479,6]
[327643068,1716270647872,-500.0,0.00035479,6]
[327643070,1716270647882,-500.0,0.00035479,2]
[327643072,1716270647891,-500.0,0.00035479,6]
[327643074,1716270647900,-500.0,0.00035479,6]
[327643076,1716270647909,-500.0,0.00035479,6]
[327643077,1716270647918,-500.0,0.00035479,6]
[327643079,1716270647927,-500.0,0.00035479,6]
[327643081,1716270647936,-500.0,0.00035479,6]
[327643083,1716270647945,-509.9902016,0.00035479,6]
[327643085,1716270647956,-500.0,0.00035479,6]
[327643087,1716270647964,-500.0,0.00035479,6]
[327643089,1716270647973,-500.0,0.00035479,6]
[327643092,1716270647983,-207.64565538,0.00035479,6]
[327643094,1716270647992,-514.44,0.00035479,6]
[327643096,1716270648000,-500.0,0.00035479,6]
[327643098,1716270648010,-543.73,0.00035479,6]
[327643100,1716270648019,-500.0,0.00035479,6]
[327643102,1716270648028,-500.0,0.00035479,6]
[327643103,1716270648039,-500.0,0.00035479,6]
[327643106,1716270648048,-500.0,0.00035479,6]
[327643108,1716270648057,-500.0,0.00035479,6]
[327643110,1716270648067,-500.0,0.00035479,6]
[327643112,1716270648077,-500.0,0.00035479,6]
[327643114,1716270648086,-500.0,0.00035479,6]
[327643116,1716270648095,-500.0,0.00035479,6]
[327643118,1716270648105,-500.0,0.00035479,6]
[327643120,1716270648114,-500.0,0.00035479,6]
[327643122,1716270648123,-501.3623528,0.00035479,6]
[327643124,1716270648133,-675.74,0.00035479,6]
[327643126,1716270648143,-675.74,0.00035479,6]
[327643128,1716270648152,-675.74,0.00035479,6]
[327643130,1716270648163,-675.74,0.00035479,6]
[327643132,1716270648175,-500.0,0.00035479,6]
[327643134,1716270648184,-675.74,0.00035479,6]
[327643136,1716270648194,-500.0,0.00035479,6]
[327643138,1716270648205,-500.0,0.00035479,6]
[327643140,1716270648216,-500.0,0.00035479,6]
[327643142,1716270648226,-500.0,0.00035479,6]
[327643144,1716270648235,-872.46,0.00035479,6]
[327643146,1716270648247,-500.0,0.00035479,6]
[327643148,1716270648257,-500.0,0.00035479,6]
[327643150,1716270648267,-500.0,0.00035479,6]
[327643152,1716270648276,-872.46,0.00035479,6]
[327643154,1716270648286,-500.0,0.00035479,6]
[327643156,1716270648295,-500.0,0.00035479,6]
[327643158,1716270648304,-509.01182368,0.00035479,6]
[327643160,1716270648313,-872.46,0.00035479,6]
[327643162,1716270648323,-872.46,0.00035479,6]
[327643164,1716270648333,-872.46,0.00035479,6]
[327643166,1716270648342,-500.0,0.00035479,6]
[327643168,1716270648351,-287.95738816,0.00035479,6]
[327643170,1716270648360,-1106.16,0.00035479,2]
[327643172,1716270648370,-531.92,0.00035479,6]
[327643174,1716270648379,-531.92,0.00035479,6]
[327643176,1716270648388,-531.92,0.00035479,6]
[327643178,1716270648397,-531.92,0.00035479,6]
[327643179,1716270648406,-500.0,0.00035479,6]
[327643180,1716270648415,-531.92,0.00035479,6]
[327643181,1716270648425,-500.0,0.00035479,6]
[327643182,1716270648435,-500.0,0.00035479,6]
[327643184,1716270648444,-155.888679,0.00035479,7]
[327643186,1716270648454,-610.06,0.00035479,6]
[327643188,1716270648463,-1260.92,0.00035479,6]
[327643190,1716270648473,-1260.92,0.00035479,6]
[327643192,1716270648482,-1260.92,0.00035479,6]
[327643194,1716270648491,-1260.92,0.00035479,6]
[327643196,1716270648500,-1260.92,0.00035479,6]
[327643198,1716270648510,-754.34,0.00035479,6]
[327643200,1716270648520,-754.34,0.00035479,6]
[327643202,1716270648529,-754.34,0.00035479,6]
[327643204,1716270648538,-649.35,0.00035479,6]
[327643206,1716270648547,-754.34,0.00035479,6]
[327643208,1716270648556,-754.34,0.00035479,6]
[327643218,1716270648642,-500.0,0.00035479,6]
[327643220,1716270648651,-500.0,0.00035479,6]
[327643222,1716270648660,-500.0,0.00035479,6]
[327643224,1716270648669,-500.0,0.00035479,6]
[327643226,1716270648679,-500.0,0.00035479,6]
[327643228,1716270648688,-500.0,0.00035479,6]
[327643230,1716270648697,-500.0,0.00035479,6]
[327643232,1716270648707,-500.0,0.00035479,6]
[327643234,1716270648717,-500.0,0.00035479,6]
[327643236,1716270648726,-500.0,0.00035479,6]
[327643238,1716270648735,-500.0,0.00035479,6]
[327643240,1716270648744,-500.0,0.00035479,6]
[327643242,1716270648753,-893.69,0.00035479,6]
[327643244,1716270648763,-893.69,0.00035479,6]
[327643246,1716270648772,-893.69,0.00035479,6]
[327643248,1716270648781,-893.69,0.00035479,6]
[327643250,1716270648790,-893.69,0.00035479,6]
[327643252,1716270648799,-971.4,0.00035479,6]
[327643254,1716270648809,-500.0,0.00035479,6]
[327643256,1716270648818,-1011.16,0.00035479,6]
[327643258,1716270648828,-500.0,0.00035479,6]
[327643259,1716270648838,-1011.16,0.00035479,6]
[327643260,1716270648847,-500.0,0.00035479,6]
[327643261,1716270648856,-1011.16,0.00035479,6]
[327643262,1716270648865,-587.71455473,0.00035479,6]
[327643263,1716270648874,-1011.16,0.00035479,6]
[327643264,1716270648882,-1011.16,0.00035479,6]
[327643265,1716270648891,-500.0,0.00035479,6]
[327643266,1716270648900,-955.2,0.00035479,6]
[327643267,1716270648909,-500.0,0.00035479,6]
[327643268,1716270648918,-500.0,0.00035479,6]
[327643270,1716270648927,-500.0,0.00035479,6]
[327643272,1716270648936,-500.0,0.00035479,6]
[327643274,1716270648945,-500.0,0.00035479,6]
[327643276,1716270648956,-500.0,0.00035479,6]
[327643278,1716270648965,-500.0,0.00035479,6]
[327643280,1716270648975,-500.0,0.00035479,6]
[327643282,1716270648984,-500.0,0.00035479,6]
[327643284,1716270648994,-500.0,0.00035479,6]
[327643286,1716270649003,-500.0,0.00035479,6]
[327643288,1716270649013,-831.53,0.00035479,6]
[327643290,1716270649022,-500.0,0.00035479,6]
[327643292,1716270649031,-500.0,0.00035479,6]
[327643294,1716270649040,-555.61781608,0.00035479,6]
[327643296,1716270649050,-865.31,0.00035479,6]
[327643298,1716270649059,-153.940107,0.00035479,7]
[327643300,1716270649068,-638.29,0.00035479,6]
[327643302,1716270649077,-638.29,0.00035479,6]
[327643304,1716270649087,-638.29,0.00035479,6]
[327643306,1716270649096,-638.29,0.00035479,6]
[327643308,1716270649107,-638.29,0.00035479,6]
[327643310,1716270649116,-998.36,0.00035479,6]
[327643312,1716270649126,-998.36,0.00035479,6]
[327643314,1716270649134,-998.36,0.00035479,6]
[327643316,1716270649145,-998.36,0.00035479,6]
[327643318,1716270649154,-998.36,0.00035479,6]
[327643320,1716270649165,-671.71,0.00035479,6]
[327643322,1716270649177,-610.81,0.00035479,6]
[327643324,1716270649186,-1771.5,0.00035479,6]
[327643326,1716270649196,-1771.5,0.00035479,6]
[327643328,1716270649208,-1771.5,0.00035479,6]
[327643331,1716270649216,-1771.5,0.00035479,6]
[327643333,1716270649226,-1771.5,0.00035479,6]
[327643334,1716270649235,-806.03,0.00035479,6]
[327643337,1716270649246,-806.03,0.00035479,6]
[327643338,1716270649256,-1771.5,0.00035479,6]
[327643341,1716270649265,-806.03,0.00035479,6]
[327643343,1716270649274,-806.03,0.00035479,6]
[327643345,1716270649285,-1771.5,0.00035479,6]
[327643347,1716270649294,-806.03,0.00035479,6]
[327643349,1716270649303,-1771.5,0.00035479,6]
[327643351,1716270649313,-1771.5,0.00035479,6]
[327643353,1716270649321,-1771.5,0.00035479,6]
[327643354,1716270649331,-1771.5,0.00035479,6]
[327643357,1716270649340,-1771.5,0.00035479,6]
[327643358,1716270649349,-1771.5,0.00035479,6]
[327643360,1716270649358,-1771.5,0.00035479,6]
[327643363,1716270649369,-1771.5,0.00035479,6]
[327643365,1716270649379,-1771.5,0.00035479,6]
[327643367,1716270649388,-1771.5,0.00035479,6]
[327643369,1716270649397,-505.67110409,0.00035479,6]
[327643371,1716270649406,-1078.13,0.00035479,6]
[327643373,1716270649415,-1078.13,0.00035479,6]
[327643375,1716270649425,-1078.13,0.00035479,6]
[327643377,1716270649433,-1078.13,0.00035479,6]
[327643379,1716270649442,-1078.13,0.00035479,6]
[327643380,1716270649451,-500.0,0.00035479,6]
[327643383,1716270649461,-500.0,0.00035479,6]
[327643384,1716270649470,-500.0,0.00035479,6]
[327643386,1716270649479,-500.0,0.00035479,6]
[327643388,1716270649488,-500.0,0.00035479,6]
[327643390,1716270649497,-500.0,0.00035479,6]
[327643392,1716270649506,-500.0,0.00035479,6]
[327643394,1716270649515,-151.0,0.00035479,7]
[327643396,1716270649524,-572.15,0.00035479,6]
[327643398,1716270649533,-572.15,0.00035479,6]
[327643400,1716270649543,-1138.97,0.00035479,6]
[327643402,1716270649552,-572.15,0.00035479,6]
[327643404,1716270649561,-572.15,0.00035479,6]
[327643407,1716270649571,-572.15,0.00035479,6]
[327643409,1716270649580,-2023.44,0.00035479,6]
[327643411,1716270649590,-2023.44,0.00035479,6]
[327643412,1716270649599,-2023.44,0.00035479,6]
[327643414,1716270649609,-2023.44,0.00035479,6]
[327643416,1716270649619,-2023.44,0.00035479,6]
[327643418,1716270649629,-500.0,0.00035479,6]
[327643420,1716270649639,-500.0,0.00035479,6]
[327643423,1716270649650,-500.0,0.00035479,6]